fUSD/lending_fUSD_20240628
["ID","MTS","AMOUNT","RATE_DAILY","PERIOD"]
[330545233,1719561151848,-532.59,0.00021095,2]
[330545234,1719561151863,-1176.17,0.00021095,2]
[330545235,1719561151872,-4339.37,0.00021095,2]
[330545236,1719561151882,-1096.31,0.00021095,2]
[330545237,1719561151894,-500.0,0.00021095,2]
[330545238,1719561151904,-791.78,0.00021095,2]
[330545239,1719561151913,-500.0,0.00021095,2]
[330545240,1719561151923,-500.0,0.00021095,2]
[330545241,1719561151935,-500.0,0.00021095,2]
[330545242,1719561151945,-1291.49,0.00021095,2]
[330545243,1719561151954,-1124.86,0.00021095,2]
[330545244,1719561151964,-504.91,0.00021095,2]
[330545245,1719561151973,-500.0,0.00021095,2]
[330545246,1719561152368,-588.38,0.00021095,2]
[330545247,1719561152378,-1639.09,0.00021095,2]
[330545248,1719561152389,-1924.82,0.00021095,2]
[330545249,1719561152398,-500.0,0.00021095,2]
[330545250,1719561152407,-1061.55,0.00021095,2]
[330545251,1719561152418,-500.0,0.00021095,2]
[330545252,1719561152427,-1465.35,0.00021095,2]
[330545253,1719561152436,-500.0,0.00021095,2]
[330545254,1719561152446,-2089.57,0.00021095,2]
[330545255,1719561152456,-500.0,0.00021095,2]
[330545256,1719561152466,-734.27,0.00021095,2]
[330545257,1719561152475,-500.0,0.00021095,2]
[330545258,1719561152486,-948.23,0.00021095,2]
[330545259,1719561152495,-3576.87,0.00021095,2]
[330545260,1719561152505,-500.0,0.00021095,2]
[330545261,1719561152515,-3780.4,0.00021095,2]
[330545262,1719561152524,-500.0,0.00021095,2]
[330545263,1719561152533,-500.0,0.00021095,2]
[330545264,1719561152546,-3935.43,0.00021095,2]
[330545265,1719561152555,-500.0,0.00021095,2]
[330545266,1719561152566,-770.26,0.00021095,2]
[330545267,1719561152574,-946.83,0.00021095,2]
[330545268,1719561152584,-500.0,0.00021095,2]
[330545269,1719561152595,-500.0,0.00021095,2]
[330545270,1719561152605,-950.23,0.00021095,2]
[330545271,1719561152615,-500.0,0.00021095,2]
[330545272,1719561152625,-1446.14,0.00021095,2]
[330545273,1719561152635,-2365.29,0.00021095,2]
[330545274,1719561152645,-292.73457858,0.00021095,2]
[330545275,1719561152654,-4503.97,0.00021095,2]
[330545276,1719561152664,-1659.75,0.00021095,2]
[330545277,1719561152673,-500.0,0.00021095,2]
[330545278,1719561152683,-500.0,0.00021095,2]
[330545279,1719561152693,-3311.36,0.00021095,2]
[330545280,1719561152703,-541.91552629,0.00021095,2]
[330545281,1719561152712,-500.0,0.00021095,2]
[330545282,1719561152722,-1322.58,0.00021095,2]
[330545283,1719561152731,-783.88,0.00021095,2]
[330545284,1719561152740,-1914.45,0.00021095,2]
[330545285,1719561152750,-500.0,0.00021095,2]
[330545286,1719561152759,-500.0,0.00021095,2]
[330545287,1719561152769,-3498.8,0.00021095,2]
[330545288,1719561152779,-1962.72,0.00021095,2]
[330545289,1719561152788,-500.0,0.00021095,2]
[330545290,1719561152798,-500.0,0.00021095,2]
[330545291,1719561152808,-612.16,0.00021095,2]
[330545292,1719561152817,-1641.9,0.00021095,2]
[330545293,1719561152826,-500.0,0.00021095,2]
[330545294,1719561152835,-500.0,0.00021095,2]
[330545295,1719561152844,-685.98,0.00021095,2]
[330545296,1719561152857,-637.51,0.00021095,2]
[330545297,1719561152866,-3117.56,0.00021095,2]
[330545298,1719561152876,-1141.3,0.00021095,2]
[330545299,1719561152885,-500.0,0.00021095,2]
[330545300,1719561152896,-4395.4,0.00021095,2]
[330545301,1719561152907,-3602.08,0.00021095,2]
[330545302,1719561152917,-500.0,0.00021095,2]
[330545303,1719561152928,-3970.07,0.00021095,2]
[330545304,1719561152938,-1264.09,0.00021095,2]
[330545305,1719561152948,-2447.28,0.00021095,2]
[330545306,1719561152958,-500.0,0.00021095,2]
[330545307,1719561152967,-500.0,0.00021095,2]
[330545308,1719561152977,-8127.46,0.00021095,2]
[330545309,1719561152987,-3867.01,0.00021095,2]
[330545310,1719561152998,-500.0,0.00021095,2]
[330545311,1719561153007,-764.6,0.00021095,2]
[330545312,1719561153016,-1319.29,0.00021095,2]
[330545313,1719561153026,-500.0,0.00021095,2]
[330545314,1719561153036,-2004.62,0.00021095,2]
[330545315,1719561153048,-2955.61,0.00021095,2]
[330545316,1719561153057,-2128.6,0.00021095,2]
[330545317,1719561153072,-964.57,0.00021095,2]
[330545318,1719561153083,-543.13,0.00021095,2]
[330545319,1719561153093,-500.0,0.00021095,2]
[330545320,1719561153102,-500.0,0.00021095,2]
[330545321,1719561153112,-5636.27,0.00021095,2]
[330545322,1719561153122,-4918.69,0.00021095,2]
[330545323,1719561153132,-4066.1,0.00021095,2]
[330545324,1719561153142,-664.5,0.00021095,2]
[330545325,1719561153154,-4196.26,0.00021095,2]
[330545326,1719561153164,-2426.91,0.00021095,2]
[330545327,1719561153174,-500.0,0.00021095,2]
[330545328,1719561153183,-500.0,0.00021095,2]
[330545329,1719561153193,-500.0,0.00021095,2]
[330545330,1719561153205,-571.57,0.00021095,2]
[330545331,1719561153215,-619.41,0.00021095,2]
[330545332,1719561153225,-1310.02,0.00021095,2]
[330545333,1719561153234,-3529.65,0.00021095,2]
[330545334,1719561153243,-790.68,0.00021095,2]
[330545335,1719561153253,-803.47,0.00021095,2]
[330545336,1719561153263,-1259.18,0.00021095,2]
[330545337,1719561153273,-1996.62,0.00021095,2]
[330545338,1719561153283,-500.0,0.00021095,2]
[330545339,1719561153297,-500.0,0.00021095,2]
[330545340,1719561153306,-3541.7,0.00021095,2]
[330545341,1719561153316,-863.97,0.00021095,2]
[330545342,1719561153325,-530.3,0.00021095,2]
[330545343,1719561153335,-676.52,0.00021095,2]
[330545344,1719561153344,-500.0,0.00021095,2]
[330545345,1719561153354,-731.62,0.00021095,2]
[330545346,1719561153365,-7586.47,0.00021095,2]
[330545347,1719561153375,-500.0,0.00021095,2]
[330545348,1719561153385,-500.0,0.00021095,2]
[330545349,1719561153395,-1475.96,0.00021095,2]
[330545350,1719561153404,-955.45,0.00021095,2]
[330545351,1719561153414,-1270.09,0.00021095,2]
[330545352,1719561153423,-1229.77,0.00021095,2]
[330545353,1719561153433,-500.0,0.00021095,2]
[330545354,1719561153442,-1393.57,0.00021095,2]
[330545355,1719561153452,-2329.0,0.00021095,2]
[330545356,1719561153462,-773.16,0.00021095,2]
[330545357,1719561153471,-243.56,0.00021095,2]
[330545358,1719561153480,-986.15,0.00021095,2]
[330545359,1719561153490,-1485.78,0.00021095,2]
[330545360,1719561153500,-1707.42,0.00021095,2]
[330545361,1719561153510,-5063.06,0.00021095,2]
[330545362,1719561153520,-500.0,0.00021095,2]
[330545363,1719561153529,-500.0,0.00021095,2]
[330545364,1719561153541,-768.85,0.00021095,2]
[330545365,1719561153550,-2012.41,0.00021095,2]
[330545366,1719561153559,-921.17,0.00021095,2]
[330545367,1719561153568,-500.0,0.00021095,2]
[330545368,1719561153578,-2037.45,0.00021095,2]
[330545369,1719561153587,-2449.33,0.00021095,2]
[330545370,1719561153597,-1779.04,0.00021095,2]
[330545371,1719561153606,-500.0,0.00021095,2]
[330545372,1719561153616,-9301.47,0.00021095,2]
[330545373,1719561153625,-500.0,0.00021095,2]
[330545374,1719561153635,-2900.72,0.00021095,2]
[330545375,1719561153644,-1017.79,0.00021095,2]
[330545376,1719561153654,-526.59,0.00021095,2]
[330545377,1719561153663,-500.0,0.00021095,2]
[330545378,1719561153673,-663.42,0.00021095,2]
[330545379,1719561153682,-674.65,0.00021095,2]
[330545380,1719561153692,-500.0,0.00021095,2]
[330545381,1719561153702,-1420.13,0.00021095,2]
[330545382,1719561153711,-500.0,0.00021095,2]
[330545383,1719561153721,-2537.99,0.00021095,2]
[330545384,1719561153731,-1037.85,0.00021095,2]
[330545385,1719561153740,-3320.06,0.00021095,2]
[330545386,1719561153750,-3319.78,0.00021095,2]
[330545387,1719561153760,-500.0,0.00021095,2]
[330545388,1719561153769,-634.63,0.00021095,2]
[330545389,1719561153779,-500.0,0.00021095,2]
[330545390,1719561153788,-56773.66,0.00021095,2]
[330545391,1719561153799,-555.58,0.00021095,2]
[330545392,1719561153808,-1092.89,0.00021095,2]
[330545393,1719561153818,-625.07,0.00021095,2]
[330545394,1719561153827,-510.63,0.00021095,2]
[330545395,1719561153836,-2200.88,0.00021095,2]
[330545396,1719561153846,-941.38,0.00021095,2]
[330545397,1719561153861,-2030.64,0.00021095,2]
[330545398,1719561153871,-670.5,0.00021095,2]
[330545399,1719561153880,-680.1,0.00021095,2]
[330545400,1719561153890,-500.0,0.00021095,2]
[330545401,1719561153902,-916.14,0.00021095,2]
[330545402,1719561153912,-1305.67,0.00021095,2]
[330545403,1719561153922,-608.88,0.00021095,2]
[330545404,1719561153933,-912.19,0.00021095,2]
[330545405,1719561153943,-2094.61,0.00021095,2]
[330545406,1719561153953,-3883.66,0.00021095,2]
[330545407,1719561153963,-500.0,0.00021095,2]
[330545408,1719561153973,-624.72,0.00021095,2]
[330545409,1719561153982,-500.0,0.00021095,2]
[330545410,1719561153992,-575.25,0.00021095,2]
[330545411,1719561154003,-1750.92,0.00021095,2]
[330545412,1719561154013,-500.0,0.00021095,2]
[330545413,1719561154024,-1644.79,0.00021095,2]
[330545414,1719561154033,-586.86,0.00021095,2]
[330545415,1719561154043,-2077.02,0.00021095,2]
[330545416,1719561154051,-500.0,0.00021095,2]
[330545417,1719561154064,-2240.25,0.00021095,2]
[330545418,1719561154073,-3442.26,0.00021095,2]
[330545419,1719561154083,-785.73,0.00021095,2]
[330545420,1719561154093,-2119.76,0.00021095,2]
[330545421,1719561154102,-3279.62,0.00021095,2]
[330545422,1719561154112,-1783.03,0.00021095,2]
[330545423,1719561154121,-1177.19,0.00021095,2]
[330545424,1719561154131,-500.0,0.00021095,2]
[330545425,1719561154141,-2812.36,0.00021095,2]
[330545426,1719561154150,-3820.4,0.00021095,2]
[330545427,1719561154160,-500.0,0.00021095,2]
[330545428,1719561154170,-500.0,0.00021095,2]
[330545429,1719561154180,-500.0,0.00021095,2]
[330545430,1719561154190,-500.0,0.00021095,2]
[330545431,1719561154200,-1875.87,0.00021095,2]
[330545432,1719561154209,-751.3,0.00021095,2]
[330545433,1719561154219,-5691.14,0.00021095,2]
[330545434,1719561154228,-500.0,0.00021095,2]
[330545435,1719561154238,-2181.6,0.00021095,2]
[330545436,1719561154248,-500.0,0.00021095,2]
[330545437,1719561154257,-4551.03,0.00021095,2]
[330545438,1719561154267,-1185.76,0.00021095,2]
[330545439,1719561154276,-500.0,0.00021095,2]
[330545440,1719561154286,-500.0,0.00021095,2]
[330545441,1719561154296,-500.0,0.00021095,2]
[330545442,1719561154306,-500.0,0.00021095,2]
[330545443,1719561154315,-500.0,0.00021095,2]
[330545444,1719561154324,-918.65,0.00021095,2]
[330545445,1719561154333,-500.0,0.00021095,2]
[330545446,1719561154344,-3480.66,0.00021095,2]
[330545447,1719561154354,-500.0,0.00021095,2]
[330545448,1719561154363,-1117.03,0.00021095,2]
[330545449,1719561154373,-710.75,0.00021095,2]
[330545450,1719561154383,-2776.49,0.00021095,2]
[330545451,1719561154393,-500.0,0.00021095,2]
[330545452,1719561154402,-1555.15,0.00021095,2]
[330545453,1719561154412,-5613.75,0.00021095,2]
[330545454,1719561154422,-3058.96,0.00021095,2]
[330545455,1719561154432,-500.0,0.00021095,2]
[330545456,1719561154441,-500.0,0.00021095,2]
[330545457,1719561154450,-820.14,0.00021095,2]
[330545458,1719561154460,-5538.45,0.00021095,2]
[330545459,1719561154469,-500.0,0.00021095,2]
[330545460,1719561154478,-825.28,0.00021095,2]
[330545461,1719561154488,-515.83,0.00021095,2]
[330545462,1719561154502,-841.57,0.00021095,2]
[330545463,1719561154512,-500.0,0.00021095,2]
[330545464,1719561154522,-500.0,0.00021095,2]
[330545465,1719561154532,-4616.67,0.00021095,2]
[330545466,1719561154542,-592.24,0.00021095,2]
[330545467,1719561154552,-10383.18,0.00021095,2]
[330545468,1719561154562,-500.0,0.00021095,2]
[330545469,1719561154573,-500.0,0.00021095,2]
[330545470,1719561154583,-1439.93,0.00021095,2]
[330545471,1719561154593,-1039.73,0.00021095,2]
[330545472,1719561154603,-887.72,0.00021095,2]
[330545473,1719561154612,-6117.5,0.00021095,2]
[330545474,1719561154622,-1863.96,0.00021095,2]
[330545475,1719561154631,-3531.61,0.00021095,2]
[330545476,1719561154641,-1143.1,0.00021095,2]
[330545477,1719561154651,-500.0,0.00021095,2]
[330545478,1719561154660,-500.0,0.00021095,2]
[330545479,1719561154670,-1362.09,0.00021095,2]
[330545480,1719561154681,-500.0,0.00021095,2]
[330545481,1719561154690,-3216.0,0.00021095,2]
[330545482,1719561154700,-23179.74,0.00021095,2]
[330545483,1719561154710,-500.0,0.00021095,2]
[330545484,1719561154721,-16559.11,0.00021095,2]
[330545485,1719561154732,-1155.64,0.00021095,2]
[330545486,1719561154743,-3529.87,0.00021095,2]
[330545487,1719561154754,-3804.04,0.00021095,2]
[330545488,1719561154764,-500.0,0.00021095,2]
[330545489,1719561154773,-850.77,0.00021095,2]
[330545490,1719561154783,-1207.75,0.00021095,2]
[330545491,1719561154967,-932.07,0.00021095,2]
[330545492,1719561154977,-500.0,0.00021095,2]
[330545493,1719561154987,-1059.78,0.00021095,2]
[330545494,1719561154996,-2084.87,0.00021095,2]
[330545495,1719561155006,-500.0,0.00021095,2]
[330545496,1719561155015,-2749.65,0.00021095,2]
[330545497,1719561155025,-12501.51,0.00021095,2]
[330545498,1719561155035,-547.83,0.00021095,2]
[330545499,1719561155045,-736.84,0.00021095,2]
[330545500,1719561155056,-1431.47,0.00021095,2]
[330545501,1719561155066,-500.0,0.00021095,2]
[330545502,1719561155077,-607.13,0.00021095,2]
[330545503,1719561155087,-2419.31,0.00021095,2]
[330545504,1719561155097,-694.49,0.00021095,2]
[330545505,1719561155107,-500.0,0.00021095,2]
[330545506,1719561155116,-500.0,0.00021095,2]
[330545507,1719561155126,-500.0,0.00021095,2]
[330545508,1719561155135,-1192.09,0.00021095,2]
[330545509,1719561155144,-9353.15,0.00021095,2]
[330545510,1719561155153,-500.0,0.00021095,2]
[330545511,1719561155162,-500.0,0.00021095,2]
[330545512,1719561155171,-1830.13,0.00021095,2]
[330545513,1719561155181,-14843.86,0.00021095,2]
[330545514,1719561155190,-8136.93,0.00021095,2]
[330545515,1719561155199,-500.0,0.00021095,2]
[330545516,1719561155209,-917.05,0.00021095,2]
[330545517,1719561155218,-500.0,0.00021095,2]
[330545518,1719561155227,-524.36,0.00021095,2]
[330545519,1719561155238,-1404.66,0.00021095,2]
[330545520,1719561155247,-687.75,0.00021095,2]
[330545521,1719561155256,-500.0,0.00021095,2]
[330545522,1719561155266,-500.0,0.00021095,2]
[330545523,1719561155275,-9718.8,0.00021095,2]
[330545524,1719561155284,-590.48,0.00021095,2]
[330545525,1719561155293,-500.0,0.00021095,2]
[330545526,1719561155303,-2153.44,0.00021095,2]
[330545527,1719561155312,-1961.45,0.00021095,2]
[330545528,1719561155321,-500.0,0.00021095,2]
[330545529,1719561155331,-500.0,0.00021095,2]
[330545530,1719561155339,-2726.91,0.00021095,2]
[330545531,1719561155349,-30319.25,0.00021095,2]
[330545532,1719561155359,-977.64,0.00021095,2]
[330545533,1719561155370,-500.0,0.00021095,2]
[330545534,1719561155380,-510.83,0.00021095,2]
[330545535,1719561155390,-627.05,0.00021095,2]
[330545536,1719561155399,-1308.73,0.00021095,2]
[330545537,1719561155409,-1727.28,0.00021095,2]
[330545538,1719561155419,-500.0,0.00021095,2]
[330545539,1719561155429,-500.0,0.00021095,2]
[330545540,1719561155438,-971.07,0.00021095,2]
[330545541,1719561155448,-295.5488941,0.00021095,2]
[330545542,1719561155458,-1351.8,0.00021095,2]
[330545543,1719561155467,-4237.77,0.00021095,2]
[330545544,1719561155477,-500.0,0.00021095,2]
[330545545,1719561155486,-2837.45,0.00021095,2]
[330545546,1719561155496,-2608.81,0.00021095,2]
[330545547,1719561155506,-645.06184949,0.00021095,2]
[330545548,1719561155515,-500.0,0.00021095,2]
[330545549,1719561155526,-4285.86,0.00021095,2]
[330545550,1719561155536,-1262.6,0.00021095,2]
[330545551,1719561155547,-500.0,0.00021095,2]
[330545552,1719561155557,-1433.34,0.00021095,2]
[330545553,1719561155569,-500.0,0.00021095,2]
[330545554,1719561155580,-500.0,0.00021095,2]
[330545555,1719561155590,-8252.27,0.00021095,2]
[330545556,1719561155600,-6336.99,0.00021095,2]
[330545557,1719561155610,-12890.69,0.00021095,2]
[330545558,1719561155619,-2531.85,0.00021095,2]
[330545559,1719561155629,-500.0,0.00021095,2]
[330545560,1719561155638,-2352.32,0.00021095,2]
[330545561,1719561155648,-500.0,0.00021095,2]
[330545562,1719561155658,-545.53,0.00021095,2]
[330545563,1719561155668,-5449.9,0.00021095,2]
[330545564,1719561155677,-8509.27,0.00021095,2]
[330545565,1719561155687,-1047.12,0.00021095,2]
[330545566,1719561155696,-1711.25,0.00021095,2]
[330545567,1719561155706,-500.0,0.00021095,2]
[330545568,1719561155716,-2403.33,0.00021095,2]
[330545569,1719561155726,-1089.03,0.00021095,2]
[330545570,1719561155735,-9077.06,0.00021095,2]
[330545571,1719561155744,-500.0,0.00021095,2]
[330545572,1719561155754,-500.0,0.00021095,2]
[330545573,1719561155764,-500.0,0.00021095,2]
[330545574,1719561155773,-500.0,0.00021095,2]
[330545575,1719561155783,-2100.4,0.00021095,2]
[330545576,1719561155792,-1206.84,0.00021095,2]
[330545577,1719561155804,-2043.62,0.00021095,2]
[330545578,1719561155814,-48268.7,0.00021095,2]
[330545579,1719561155825,-3104.35,0.00021095,2]
[330545580,1719561155834,-500.0,0.00021095,2]
[330545581,1719561155843,-500.0,0.00021095,2]
[330545582,1719561155856,-521.68,0.00021095,2]
[330545583,1719561155865,-1571.3,0.00021095,2]
[330545584,1719561155874,-949.58,0.00021095,2]
[330545585,1719561155883,-1255.94,0.00021095,2]
[330545586,1719561155891,-4077.23,0.00021095,2]
[330545587,1719561155902,-602.61,0.00021095,2]
[330545588,1719561155911,-11111.01,0.00021095,2]
[330545589,1719561155920,-500.0,0.00021095,2]
[330545590,1719561155932,-1358.81,0.00021095,2]
[330545591,1719561155943,-500.0,0.00021095,2]
[330545592,1719561155954,-1332.94,0.00021095,2]
[330545593,1719561155964,-1300.0,0.00021095,2]
[330545594,1719561155974,-1544.91,0.00021095,2]
[330545595,1719561155984,-42236.37,0.00021095,2]
[330545596,1719561155993,-712.95,0.00021095,2]
[330545597,1719561156004,-1446.93,0.00021095,2]
[330545598,1719561156013,-707.93,0.00021095,2]
[330545599,1719561156023,-850.09,0.00021095,2]
[330545600,1719561156032,-2886.12,0.00021095,2]
[330545601,1719561156042,-945.42,0.00021095,2]
[330545602,1719561156055,-500.0,0.00021095,2]
[330545603,1719561156065,-500.0,0.00021095,2]
[330545604,1719561156075,-13133.43,0.00021095,2]
[330545605,1719561156084,-594.36,0.00021095,2]
[330545606,1719561156094,-1924.21,0.00021095,2]
[330545607,1719561156104,-1289.14,0.00021095,2]
[330545608,1719561156114,-12586.2,0.00021095,2]
[330545609,1719561156123,-5222.3,0.00021095,2]
[330545610,1719561156133,-500.0,0.00021095,2]
[330545611,1719561156142,-768.96,0.00021095,2]
[330545612,1719561156152,-2337.53,0.00021095,2]
[330545613,1719561156162,-831.9,0.00021095,2]
[330545614,1719561156172,-500.0,0.00021095,2]
[330545615,1719561156182,-500.0,0.00021095,2]
[330545616,1719561156191,-5851.92,0.00021095,2]
[330545617,1719561156201,-500.0,0.00021095,2]
[330545618,1719561156211,-500.0,0.00021095,2]
[330545619,1719561156220,-500.0,0.00021095,2]
[330545620,1719561156229,-628.24,0.00021095,2]
[330545621,1719561156239,-598.11,0.00021095,2]
[330545622,1719561156247,-603.56,0.00021095,2]
[330545623,1719561156257,-1283.39,0.00021095,2]
[330545624,1719561156266,-1699.87,0.00021095,2]
[330545625,1719561156276,-2793.12,0.00021095,2]
[330545626,1719561156285,-704.49,0.00021095,2]
[330545627,1719561156295,-671.55,0.00021095,2]
[330545628,1719561156305,-4870.14,0.00021095,2]
[330545629,1719561156314,-500.0,0.00021095,2]
[330545630,1719561156323,-966.94,0.00021095,2]
[330545631,1719561156332,-540.72,0.00021095,2]
[330545632,1719561156342,-500.0,0.00021095,2]
[330545633,1719561156351,-721.87,0.00021095,2]
[330545634,1719561156360,-500.0,0.00021095,2]
[330545635,1719561156370,-500.0,0.00021095,2]
[330545636,1719561156379,-505.4,0.00021095,2]
[330545637,1719561156388,-500.0,0.00021095,2]
[330545638,1719561156397,-1685.84,0.00021095,2]
[330545639,1719561156407,-2147.27,0.00021095,2]
[330545640,1719561156416,-500.0,0.00021095,2]
[330545641,1719561156425,-500.0,0.00021095,2]
[330545642,1719561156435,-574.19,0.00021095,2]
[330545643,1719561156444,-4610.65,0.00021095,2]
[330545644,1719561156453,-500.0,0.00021095,2]
[330545645,1719561156463,-3996.23,0.00021095,2]
[330545646,1719561156472,-500.0,0.00021095,2]
[330545647,1719561156481,-2065.71,0.00021095,2]
[330545648,1719561156490,-3987.89,0.00021095,2]
[330545649,1719561156500,-587.38,0.00021095,2]
[330545650,1719561156509,-687.46,0.00021095,2]
[330545651,1719561156518,-1330.45,0.00021095,2]
[330545652,1719561156528,-3336.77,0.00021095,2]
[330545653,1719561156537,-3314.18,0.00021095,2]
[330545654,1719561156548,-500.0,0.00021095,2]
[330545655,1719561156557,-872.41,0.00021095,2]
[330545656,1719561156566,-500.0,0.00021095,2]
[330545657,1719561156576,-810.49,0.00021095,2]
[330545658,1719561156585,-1974.25,0.00021095,2]
[330545659,1719561156594,-5236.64,0.00021095,2]
[330545660,1719561156603,-500.0,0.00021095,2]
[330545661,1719561156613,-642.68,0.00021095,2]
[330545662,1719561156622,-4552.9,0.00021095,2]
[330545663,1719561156631,-32404.44,0.00021095,2]
[330545664,1719561156640,-795.7,0.00021095,2]
[330545665,1719561156649,-24101.78,0.00021095,2]
[330545666,1719561156658,-790.32,0.00021095,2]
[330545667,1719561156668,-694.42,0.00021095,2]
[330545668,1719561156678,-4218.61,0.00021095,2]
[330545669,1719561156688,-7764.7,0.00021095,2]
[330545670,1719561156697,-4199.29,0.00021095,2]
[330545671,1719561156710,-922.73,0.00021095,2]
[330545672,1719561156719,-717.49,0.00021095,2]
[330545673,1719561156729,-1033.21,0.00021095,2]
[330545674,1719561156738,-897.41,0.00021095,2]
[330545675,1719561156747,-1450.89,0.00021095,2]
[330545676,1719561156757,-500.0,0.00021095,2]
[330545677,1719561156766,-701.5,0.00021095,2]
[330545678,1719561156775,-4300.22,0.00021095,2]
[330545679,1719561156784,-500.0,0.00021095,2]
[330545680,1719561156793,-776.36,0.00021095,2]
[330545681,1719561156802,-608.64,0.00021095,2]
[330545682,1719561156811,-500.0,0.00021095,2]
[330545683,1719561156820,-506.29759762,0.00021095,2]
[330545684,1719561156830,-9904.94,0.00021095,2]
[330545685,1719561156839,-3512.53,0.00021095,2]
[330545686,1719561156848,-640.51,0.00021095,2]
[330545687,1719561156862,-1429.64,0.00021095,2]
[330545688,1719561156872,-431.83,0.00021095,2]
[330545689,1719561156881,-573.81,0.00021095,2]
[330545690,1719561156890,-1577.54,0.00021095,2]
[330545691,1719561156902,-2085.15,0.00021095,2]
[330545692,1719561156910,-500.0,0.00021095,2]
[330545693,1719561156920,-930.57,0.00021095,2]
[330545694,1719561156933,-4334.27,0.00021095,2]
[330545695,1719561156943,-1068.95,0.00021095,2]
[330545696,1719561156952,-1596.89,0.00021095,2]
[330545697,1719561156961,-1065.22,0.00021095,2]
[330545698,1719561156970,-1080.72,0.00021095,2]
[330545699,1719561156980,-3797.01,0.00021095,2]
[330545700,1719561156989,-500.0,0.00021095,2]
[330545701,1719561156999,-2798.1186873,0.00021121,2]
[330545702,1719561157009,-150.0,0.00021251,2]
[330545703,1719561157018,-315.21602777,0.00021269,2]
[330545704,1719561157027,-907.53,0.00021369,2]
[330545705,1719561157036,-2122.53,0.00021369,2]
[330545706,1719561157046,-1141.96,0.00021369,2]
[330545707,1719561157056,-1690.68,0.00021369,2]
[330545708,1719561157065,-500.0,0.00021369,2]
[330545709,1719561157075,-870.65,0.00021369,2]
[330545710,1719561157084,-629.5410564,0.00021369,2]
[330545711,1719561157094,-503.68,0.00021369,2]
[330545712,1719561157103,-500.0,0.00021369,2]
[330545713,1719561157112,-504.05,0.00021369,2]
[330545714,1719561157121,-846.93,0.00021369,2]
[330545715,1719561157130,-1149.92,0.00021369,2]
[330545716,1719561157140,-1397.93,0.00021369,2]
[330545717,1719561157150,-1748.17,0.00021369,2]
[330545718,1719561157159,-500.0,0.00021369,2]
[330545719,1719561157168,-542.84,0.00021369,2]
[330545720,1719561157177,-500.0,0.00021369,2]
[330545721,1719561157186,-693.92,0.00021369,2]
[330545722,1719561157196,-500.0,0.00021369,2]
[330545723,1719561157205,-792.31,0.00021369,2]
[330545724,1719561157214,-500.0,0.00021369,2]
[330545725,1719561157224,-908.05,0.00021369,2]
[330545726,1719561157233,-1448.94,0.00021369,2]
[330545727,1719561157243,-500.0,0.00021369,2]
[330545728,1719561157252,-500.0,0.00021369,2]
[330545729,1719561157261,-500.0,0.00021369,2]
[330545730,1719561157270,-500.0,0.00021369,2]
[330545731,1719561157280,-1782.8,0.00021369,2]
[330545732,1719561157289,-500.0,0.00021369,2]